bitfinex/quotes_SOLUSD_20240716
["timestamp","ask_amount","ask_price","bid_price","bid_amount"]
[1721144107425,30.62,158.55,158.52,6.3083]
[1721144107723,6.3064,158.57,158.53,6.3078]
[1721144108230,6.3064,158.57,158.47,47.8491]
[1721144108231,30.62,158.58,158.47,66.8391]
[1721144108410,30.62,158.58,158.54,15.7684]
[1721144108730,1.95163129,158.59,158.54,15.7684]
[1721144108922,0.3745,158.59,158.54,15.7684]
[1721144109120,6.306,158.58,158.48,45.0]
[1721144109335,0.3745,158.59,158.54,6.3072]
[1721144109633,1.57653594,158.58,158.52,6.3079]
[1721144109816,32.19653594,158.58,158.52,6.3079]
[1721144110127,6.3073,158.55,158.5,22.0812]
[1721144110506,36.9268,158.56,158.51,6.3087]
[1721144110706,6.3072,158.55,158.5,22.0813]
[1721144111021,6.3084,158.52,158.48,6.3096]
[1721144111428,36.928,158.53,158.48,6.3096]
[1721144111610,36.928,158.53,158.49,6.3094]
[1721144112207,30.62,158.53,158.49,6.3094]
[1721144112414,30.62,158.53,158.5,6.3088]
[1721144112619,30.62,158.53,158.47,16.2983]
[1721144112906,1.57705385,158.56,158.45,6.4673]
[1721144112907,30.62,158.5,158.45,12.7783]
[1721144113101,30.62,158.5,158.46,6.3106]
[1721144113406,30.62,158.5,158.45,28.5555]
[1721144113407,36.9291,158.5,158.45,28.5555]
[1721144113620,36.9291,158.5,158.46,6.3107]
[1721144113817,30.62,158.5,158.46,6.3107]
[1721144114014,30.62,158.5,158.47,6.31]
[1721144114514,30.62,158.5,158.48,6.3099]
[1721144114719,30.62,158.52,158.49,6.3094]
[1721144114920,30.62,158.56,158.51,6.3086]
[1721144114921,36.9268,158.56,158.51,6.3086]
[1721144115308,6.3071,158.55,158.51,6.3086]
[1721144115523,6.3071,158.55,158.5,6.309]
[1721144115709,7.88437604,158.54,158.49,22.0827]
[1721144115905,1.57687604,158.54,158.45,22.2448]
[1721144116126,30.62,158.5,158.45,22.2448]
[1721144116327,36.9292,158.5,158.45,22.2448]
[1721144116822,36.9292,158.5,158.45,22.0885]
[1721144117206,30.62,158.5,158.46,6.3107]
[1721144118008,36.9291,158.5,158.46,6.3107]
[1721144118207,30.62,158.5,158.47,6.3102]
[1721144118420,36.9292,158.5,158.46,6.3106]
[1721144118844,6.3096,158.49,158.45,22.0885]
[1721144119137,30.62,158.47,158.42,22.0924]
[1721144119308,30.62,158.47,158.43,6.3118]
[1721144119513,36.9303,158.47,158.42,22.0926]
[1721144119831,36.9303,158.47,158.43,6.3119]
[1721144120058,36.9303,158.47,158.42,22.0926]
[1721144120203,1.57780927,158.46,158.42,22.0926]
[1721144120411,15.7715,158.52,158.39,31.5301]
[1721144120412,1.57778666,158.45,158.39,31.5301]
[1721144120622,6.311,158.46,158.42,6.3122]
[1721144120804,7.88831906,158.47,158.42,6.3122]
[1721144121004,1.57801906,158.47,158.41,15.7812]
[1721144121226,6.3111,158.45,158.41,15.7812]
[1721144121419,1.57801906,158.47,158.41,15.7812]
[1721144121607,34.5,158.48,158.44,6.3114]
[1721144121812,6.3097,158.49,158.43,15.7788]
[1721144121813,6.3092,158.5,158.43,15.7788]
[1721144122014,7.88678077,158.5,158.46,6.3106]
[1721144122334,1.57758077,158.5,158.46,15.7766]
[1721144122634,42.38638026,158.51,158.46,22.087]
[1721144123033,6.3091,158.5,158.46,22.087]
[1721144123236,40.8087,158.51,158.47,6.3102]
[1721144123440,40.8087,158.51,158.46,15.7766]
[1721144123441,40.8087,158.51,158.46,22.0872]
[1721144123733,6.3092,158.5,158.46,22.0872]
[1721144124034,34.5,158.51,158.48,15.7743]
[1721144124224,42.38526683,158.54,158.48,15.7743]
[1721144124534,7.88526821,158.53,158.48,22.0842]
[1721144125049,6.3082,158.53,158.48,22.0842]
[1721144125223,7.88533476,158.53,158.48,22.0842]
[1721144125434,6.3084,158.52,158.48,22.0842]
[1721144125733,34.5,158.54,158.47,15.3605]
[1721144126110,40.8076,158.54,158.49,6.3091]
[1721144126844,1.57701541,158.53,158.47,15.3605]
[1721144127135,34.5,158.51,158.46,6.3104]
[1721144127332,1.57726047,158.51,158.45,22.0885]
[1721144127911,1.57726047,158.51,158.46,6.3106]
[1721144128110,1.57726047,158.51,158.45,22.0884]
[1721144128111,6.3094,158.5,158.45,22.0884]
[1721144128333,6.3087,158.51,158.46,6.85473065]
[1721144128545,7.88642517,158.5,158.45,22.0885]
[1721144128842,6.3091,158.5,158.45,22.0885]
[1721144129221,1.57748546,158.53,158.43,16.35628836]
[1721144129428,1.57748546,158.53,158.46,6.3106]
[1721144129429,6.309,158.51,158.46,6.3106]
[1721144129627,6.3092,158.5,158.46,6.3106]
[1721144130233,6.3096,158.49,158.44,22.0892]
[1721144130431,1.57736785,158.48,158.43,15.0943]
[1721144130634,6.31,158.48,158.43,21.4059]
[1721144130939,1.57762107,158.51,158.44,1.26206899]
[1721144131237,6.3094,158.5,158.45,6.311]
[1721144131467,1.57748141,158.49,158.43,30.8731]
[1721144131664,6.3096,158.49,158.44,6.3112]
[1721144131879,1.57758401,158.52,158.44,6.3112]
[1721144132044,1.57752799,158.51,158.45,7.57312239]
[1721144132346,1.57752799,158.51,158.43,32.13516521]
[1721144132554,6.3092,158.5,158.45,6.3108]
[1721144132769,6.3096,158.49,158.45,6.3108]
[1721144132976,6.3099,158.48,158.44,6.3115]
[1721144133276,6.3099,158.48,158.43,37.1849]
[1721144133744,6.3099,158.48,158.44,1.26177592]
[1721144134136,1.57752799,158.51,158.43,30.8731]
[1721144134137,6.3104,158.47,158.43,30.8731]
[1721144134341,6.3104,158.47,158.43,37.1849]
[1721144134578,6.3104,158.47,158.43,30.8731]
[1721144135239,6.3108,158.46,158.43,15.0943]
[1721144135459,6.31,158.48,158.43,15.0943]
[1721144135767,6.3096,158.49,158.44,15.7783]
[1721144135947,7.88759974,158.48,158.44,15.7783]
[1721144136149,7.88796495,158.47,158.43,15.0943]
[1721144136350,7.88796495,158.47,158.43,16.35650777]
[1721144137169,6.3103,158.47,158.43,16.35650777]
[1721144137369,7.88767772,158.48,158.43,22.66830777]
[1721144137579,7.88767772,158.48,158.43,21.4061]
[1721144137762,1.57768369,158.48,158.43,30.8737]
[1721144138066,6.3106,158.47,158.43,30.8737]
[1721144138274,6.3106,158.47,158.43,37.1856]
[1721144138570,1.57768369,158.48,158.43,30.8737]
[1721144138746,34.5,158.49,158.44,6.83521233]
[1721144139071,1.57757489,158.53,158.43,46.6534]
[1721144139278,1.57719311,158.52,158.43,46.6534]
[1721144139479,6.31,158.48,158.44,22.0897]
[1721144139974,6.3095,158.49,158.45,7.57318448]
[1721144140182,1.57749439,158.48,158.43,15.0943]
[1721144140370,7.88749439,158.48,158.43,21.4061]
[1721144140672,6.3103,158.47,158.43,15.0943]
[1721144140841,36.07749439,158.48,158.39,15.0678]
[1721144141045,6.3107,158.46,158.42,6.3122]
[1721144141640,6.3104,158.47,158.42,6.3122]
[1721144141861,36.07749439,158.48,158.44,6.3114]
[1721144142070,36.07749439,158.48,158.43,1.26224018]
[1721144142287,6.0031,158.51,158.43,7.57404018]
[1721144142288,30.66,158.46,158.43,7.57404018]
[1721144143374,30.66,158.46,158.43,1.26224018]
[1721144143674,1.57779808,158.45,158.39,15.0678]
[1721144143873,30.66,158.43,158.4,6.3131]
[1721144144179,30.66,158.43,158.39,15.0678]
[1721144144180,36.9719,158.43,158.39,15.0678]
[1721144144475,30.66,158.43,158.4,6.313]
[1721144144651,30.66,158.43,158.39,21.3812]
[1721144144849,30.66,158.43,158.42,6.3123]
[1721144145752,30.66,158.43,158.41,6.3127]
[1721144146151,1.57791861,158.47,158.39,15.0678]
[1721144146361,30.66,158.43,158.39,15.0678]
[1721144146558,30.66,158.43,158.4,6.313]
[1721144146786,30.66,158.43,158.39,30.8511]
[1721144146787,30.66,158.43,158.41,6.3127]
[1721144146977,30.66,158.43,158.41,17.0435986]
[1721144147157,30.66,158.43,158.41,15.7812]
[1721144147357,30.66,158.43,158.4,6.3127]
[1721144148088,30.66,158.43,158.4,22.0954]
[1721144148301,1.57799852,158.42,158.37,15.7857]
[1721144148460,1.57799852,158.42,158.37,22.0996]
[1721144148461,30.66,158.4,158.37,22.0996]
[1721144148787,30.66,158.4,158.37,22.0998]
[1721144149089,7.89190617,158.39,158.35,6.315]
[1721144149263,30.66,158.36,158.33,15.7895]
[1721144149655,6.3133,158.4,158.35,15.7874]
[1721144149855,6.3138,158.39,158.35,15.7874]
[1721144150067,6.3141,158.38,158.34,16.5737]
[1721144150299,38.55303547,158.37,158.33,6.3159]
[1721144150590,30.66,158.37,158.33,6.3159]
[1721144150796,36.9744,158.37,158.33,6.3159]
[1721144150967,1.57869164,158.36,158.32,22.1066]
[1721144151167,30.66,158.34,158.32,15.7904]
[1721144151683,30.66,158.35,158.32,15.7904]
[1721144152187,30.66,158.35,158.32,22.1065]
[1721144152492,30.66,158.35,158.32,15.7904]
[1721144152801,30.66,158.35,158.33,6.3158]
[1721144153087,30.66,158.35,158.32,22.1066]
[1721144153287,30.66,158.35,158.33,6.3157]
[1721144153491,30.66,158.35,158.32,15.7904]
[1721144153990,30.66,158.35,158.32,22.1066]
[1721144154299,1.57893734,158.39,158.33,6.3157]
[1721144154595,38.55185238,158.4,158.34,15.7883]
[1721144154785,32.23865238,158.4,158.34,15.7883]
[1721144155188,30.66,158.35,158.31,22.1079]
[1721144155483,6.3159,158.33,158.29,6.3174]
[1721144155865,30.66,158.3,158.28,6.3178]
[1721144157194,30.66,158.3,158.27,22.1139]
[1721144157702,30.66,158.3,158.27,15.7957]
[1721144158186,30.66,158.3,158.28,6.3179]
[1721144158395,1.5794088,158.31,158.28,6.3179]
[1721144158590,6.3175,158.29,158.26,16.4833]
[1721144158773,30.66,158.29,158.26,16.4833]
[1721144159179,30.66,158.29,158.26,22.8019]
[1721144159376,30.66,158.29,158.26,16.4833]
[1721144159782,30.66,158.29,158.26,22.8019]
[1721144160175,1.57946331,158.28,158.25,6.319]
[1721144160597,30.66,158.29,158.26,6.3186]
[1721144160766,1.57961609,158.31,158.27,6.3182]
[1721144160972,30.66,158.28,158.22,16.2266]
[1721144161172,1.57960718,158.27,158.23,22.1193]
[1721144161704,1.57960718,158.27,158.21,6.01]
[1721144161705,30.66,158.25,158.21,6.3205]
[1721144161903,1.57993153,158.24,158.2,22.1232]
[1721144162110,30.66,158.22,158.18,16.2266]
[1721144162403,30.66,158.22,158.19,15.8034]
[1721144162627,30.66,158.22,158.2,6.3207]
[1721144162902,30.66,158.22,158.19,22.1248]
[1721144163197,30.66,158.22,158.19,22.1249]
[1721144163399,30.66,158.22,158.19,15.8034]
[1721144163601,30.66,158.22,158.18,16.2266]
[1721144163781,30.66,158.22,158.19,6.3215]
[1721144164201,30.66,158.22,158.2,6.3211]
[1721144164376,6.3192,158.25,158.2,6.3211]
[1721144164576,30.66,158.23,158.19,15.8034]
[1721144164775,30.66,158.23,158.13,292.9284]
[1721144164776,6.3206,158.22,158.17,6.3222]
[1721144165128,32.24018886,158.23,158.14,15.0243]
[1721144165129,30.66,158.2,158.14,15.0243]
[1721144165399,30.66,158.17,158.14,21.3474]
[1721144165571,6.3204,158.22,158.14,15.0243]
[1721144165775,38.56114095,158.21,158.16,6.3224]
[1721144166002,31.9127,158.27,158.22,6.3202]
[1721144166003,1.5803992,158.25,158.22,6.3202]
[1721144166301,30.66,158.23,158.22,6.3202]
[1721144166995,30.66,158.23,158.14,15.0243]
[1721144166996,36.9801,158.23,158.18,6.3218]
[1721144167202,30.66,158.23,158.21,6.3205]
[1721144167415,30.66,158.23,158.19,22.1244]
[1721144167904,30.66,158.23,158.17,6.3222]
[1721144167905,6.3208,158.21,158.17,6.3222]
[1721144168213,30.66,158.2,158.17,6.3222]
[1721144168517,38.5615297,158.2,158.16,15.8062]
[1721144168907,38.5615297,158.2,158.15,6.323]
[1721144168908,30.66,158.17,158.13,6.3235]
[1721144169107,30.66,158.17,158.14,15.8081]
[1721144169313,30.66,158.17,158.1,16.3996]
[1721144169314,30.66,158.2,158.16,15.8061]
[1721144169505,30.66,158.21,158.18,6.3215]
[1721144169822,30.66,158.21,158.19,6.3214]
[1721144170032,30.66,158.24,158.19,1.08657692]
[1721144170325,30.66,158.28,158.19,46.08657692]
[1721144170826,1.57976695,158.29,158.26,6.3187]
[1721144171027,1.57976695,158.29,158.19,46.08657692]
[1721144171028,1.57948129,158.33,158.27,1.08602769]
[1721144171202,30.66,158.31,158.27,15.795]
[1721144171396,30.66,158.31,158.28,7.40332474]
[1721144171715,30.66,158.31,158.28,6.3179]
[1721144171917,30.66,158.31,158.27,15.795]
[1721144172312,1.57931591,158.3,158.27,15.795]
[1721144172508,30.66,158.31,158.27,22.1131]
[1721144172720,36.9767,158.31,158.27,15.795]
[1721144172925,7.89646045,158.3,158.26,15.8504]
[1721144173316,30.66,158.28,158.25,6.319]
[1721144174417,30.66,158.28,158.25,6.3189]
[1721144175105,1.57966117,158.27,158.24,22.1178]
[1721144175414,36.9781,158.28,158.24,22.1179]
[1721144175612,36.9781,158.28,158.24,6.3195]
[1721144175613,1.57967437,158.27,158.24,6.3195]
[1721144176019,1.57967437,158.27,158.23,6.3198]
[1721144176415,30.66,158.25,158.21,15.8014]
[1721144177011,30.66,158.28,158.24,6.3195]
[1721144177328,1.57978876,158.27,158.22,6.3202]
[1721144178035,36.6916,158.31,158.21,22.122]
[1721144178036,30.66,158.25,158.21,22.122]
[1721144178225,30.66,158.22,158.16,31.6122]
[1721144178544,30.66,158.22,158.19,15.8029]
[1721144178703,30.66,158.22,158.19,22.124]
[1721144178909,1.58023294,158.21,158.17,6.3222]
[1721144179111,1.58034169,158.2,158.16,22.1291]
[1721144179334,30.66,158.19,158.16,15.8065]
[1721144179646,30.66,158.19,158.16,22.1292]
[1721144180007,30.66,158.19,158.15,6.323]
[1721144180008,1.58046805,158.18,158.15,6.323]
[1721144180239,30.66,158.19,158.14,16.3017]
[1721144180412,30.66,158.19,158.16,6.3224]
[1721144181245,30.66,158.19,158.15,15.8072]
[1721144181246,1.58056715,158.18,158.14,22.6248]
[1721144182439,1.58056715,158.18,158.14,38.4332]
[1721144182440,1.58069029,158.18,158.14,38.4332]
[1721144182738,7.90259029,158.18,158.14,15.8081]
[1721144182922,1.58069029,158.18,158.14,22.1315]
[1721144183323,30.66,158.19,158.15,6.323]
[1721144183522,7.90099071,158.22,158.17,6.3221]
[1721144183915,6.3216,158.19,158.14,6.3234]
[1721144184236,6.3216,158.19,158.13,15.8097]
[1721144184237,1.58067823,158.2,158.15,6.3227]
[1721144184542,7.90177823,158.2,158.15,6.3228]
[1721144184837,1.58067823,158.2,158.13,15.8097]
[1721144185335,30.66,158.21,158.17,6.3222]
[1721144185641,1.58033138,158.21,158.16,15.8067]
[1721144185943,6.3206,158.22,158.17,6.3222]
[1721144186142,1.58032912,158.22,158.18,6.3218]
[1721144186437,6.3206,158.22,158.17,6.3222]
[1721144186641,1.58039041,158.21,158.15,6.323]
[1721144186936,38.56196115,158.2,158.13,15.8095]
[1721144187127,32.24056115,158.2,158.14,6.3234]
[1721144187316,30.66,158.2,158.13,15.8095]
[1721144187834,6.3219,158.18,158.13,22.1333]
[1721144188034,1.58070345,158.17,158.13,22.1333]
[1721144188544,6.323,158.16,158.09,16.6602737]
[1721144188739,1.58100164,158.15,158.09,16.6602737]
[1721144188946,7.90468249,158.14,158.09,22.9857737]
[1721144189244,1.58108156,158.13,158.1,6.325]
[1721144189425,6.3231,158.15,158.1,6.325]
[1721144189631,1.58105142,158.14,158.1,6.325]
[1721144190354,7.90455142,158.14,158.09,22.9856737]
[1721144190636,1.58108188,158.13,158.1,6.325]
[1721144190838,1.58108095,158.15,158.11,6.3246]
[1721144191156,1.58108095,158.14,158.11,6.3246]
[1721144191312,1.58108095,158.14,158.09,16.6602737]
[1721144191313,7.90488095,158.14,158.09,16.6602737]
[1721144191521,1.5812209,158.16,158.09,16.6602737]
[1721144192038,30.66,158.14,158.09,16.6602737]
[1721144192242,36.9835,158.14,158.09,22.9853737]
[1721144192538,30.66,158.14,158.1,6.325]
[1721144192716,38.56465247,158.14,158.09,16.6602737]
[1721144193117,30.66,158.14,158.1,6.325]
[1721144193419,30.66,158.14,158.11,15.8113]
[1721144193633,38.56346161,158.17,158.12,6.3242]
[1721144193949,38.56346161,158.17,158.11,15.8113]
[1721144193950,6.3231,158.15,158.11,22.1359]
[1721144194115,1.58098173,158.17,158.13,15.8092]
[1721144194319,36.9814,158.2,158.15,6.323]
[1721144194545,30.66,158.2,158.13,15.8092]
[1721144194723,30.66,158.2,158.15,6.323]
[1721144194923,30.66,158.2,158.18,6.3215]
[1721144195158,7.97959094,158.23,158.17,6.3222]
[1721144195645,6.3207,158.21,158.17,15.8048]
[1721144195819,6.3215,158.19,158.15,6.323]
[1721144196026,1.58046266,158.18,158.14,22.1317]
[1721144196221,7.9027593,158.18,158.14,15.8084]
[1721144196527,1.5806593,158.18,158.14,15.8084]
[1721144196728,30.66,158.2,158.14,15.8084]
[1721144196948,36.9811,158.2,158.15,6.3229]
[1721144197654,6.3216,158.19,158.14,22.1318]
[1721144197855,6.3219,158.18,158.14,15.8084]
[1721144198158,1.58072862,158.17,158.14,15.8084]
[1721144198619,1.58069207,158.18,158.14,15.8084]
[1721144198828,13.01278923,158.23,158.19,6.3214]
[1721144198829,6.61368923,158.23,158.19,6.3214]
[1721144199040,45.17392772,158.23,158.19,6.3214]
[1721144199240,32.24023849,158.23,158.19,6.3211]
[1721144199455,38.56013849,158.23,158.18,23.38870287]
[1721144199640,38.56013849,158.23,158.18,22.1258]
[1721144199970,32.24025147,158.26,158.18,17.06830118]
[1721144200178,6.3195,158.24,158.19,6.3214]
[1721144200458,38.56002577,158.23,158.18,22.1259]
[1721144200656,1.58021304,158.22,158.18,22.1259]
[1721144201070,30.66,158.23,158.18,15.8041]
[1721144201241,1.58027947,158.26,158.18,15.8041]
[1721144201242,32.24027947,158.26,158.23,6.3199]
[1721144201445,30.66,158.26,158.24,6.3194]
[1721144201742,30.66,158.26,158.23,22.1195]
[1721144202149,30.66,158.26,158.2,15.8022]
[1721144202346,1.57988359,158.25,158.2,22.123]
[1721144202965,7.89928359,158.25,158.21,6.3205]
[1721144203139,7.89928359,158.25,158.2,22.1232]
[1721144203456,6.3199,158.23,158.2,15.8022]
[1721144203658,6.3199,158.23,158.16,15.2058]
[1721144203659,1.58016224,158.22,158.16,31.0118]
[1721144203854,1.58016224,158.22,158.19,6.3214]
[1721144204232,1.58016224,158.22,158.18,6.3218]
[1721144204436,1.58016224,158.22,158.19,6.3214]
[1721144204646,1.58025308,158.22,158.18,15.8043]
[1721144204853,1.58025308,158.22,158.19,6.3212]
[1721144205449,30.66,158.23,158.2,15.8018]
[1721144205646,30.66,158.23,158.21,6.3207]
[1721144205858,1.58018262,158.26,158.22,15.8003]
[1721144206056,38.4541876,158.31,158.22,22.1205]
[1721144206057,36.9783,158.27,158.22,22.1205]
[1721144206358,7.89865953,158.26,158.22,22.1205]
[1721144206564,30.66,158.27,158.23,6.3197]
[1721144206864,30.66,158.27,158.24,6.3194]
[1721144207035,1.57983167,158.3,158.19,31.6068]
[1721144207036,1.57971514,158.3,158.19,31.6068]
[1721144207241,36.9763,158.32,158.27,22.1139]
[1721144207465,30.66,158.32,158.27,22.1139]
[1721144207690,30.66,158.31,158.27,22.1139]
[1721144208244,36.9768,158.31,158.27,22.1139]
[1721144208445,30.66,158.31,158.28,6.3178]
[1721144208655,30.66,158.31,158.28,7.58105368]
[1721144208859,30.66,158.31,158.29,6.3174]
[1721144209171,30.66,158.31,158.27,15.7957]
[1721144209677,36.9767,158.31,158.27,15.7957]
[1721144209852,30.66,158.31,158.27,16.35758695]
[1721144210044,30.66,158.31,158.28,7.12286681]
[1721144210239,7.89529385,158.33,158.29,6.3174]
[1721144210462,30.66,158.34,158.3,7.12214402]
[1721144210648,1.57899179,158.39,158.31,15.7912]
[1721144210860,21.815,158.4,158.31,15.7912]
[1721144210861,1.57880107,158.37,158.33,6.3159]
[1721144211250,7.8930087,158.38,158.34,7.26562433]
[1721144211448,7.8930087,158.38,158.31,15.7912]
[1721144211449,7.89218717,158.4,158.35,6.315]
[1721144211667,1.57857081,158.39,158.35,6.315]
[1721144211844,36.9727,158.41,158.36,7.57677733]
[1721144212047,7.8915975,158.4,158.35,22.1022]
[1721144212357,7.89162711,158.4,158.35,22.1022]
[1721144212564,7.89212035,158.39,158.35,15.7872]
[1721144212980,30.66,158.41,158.35,15.7872]
[1721144213140,36.9727,158.41,158.36,7.57703876]
[1721144213343,7.89152406,158.4,158.35,22.1022]
[1721144213543,6.3143,158.37,158.33,6.3159]
[1721144213777,1.57861978,158.36,158.32,15.7904]
[1721144213958,7.89305854,158.37,158.32,22.1063]
[1721144214162,30.66,158.35,158.28,6.5245]
[1721144214477,30.66,158.29,158.23,38.2]
[1721144214677,32.23958854,158.32,158.23,38.2]
[1721144214879,6.3178,158.29,158.23,38.2]
[1721144215051,6.3183,158.27,158.23,38.2]
[1721144215876,30.66,158.3,158.23,38.2]
[1721144216179,30.66,158.3,158.25,6.3188]
[1721144216475,6.3179,158.28,158.24,6.3194]
[1721144216784,6.3179,158.28,158.23,44.5198]
[1721144217578,6.3172,158.3,158.23,38.2]
[1721144217783,1.57930186,158.34,158.27,6.3182]
[1721144217983,6.3167,158.31,158.26,22.1153]
[1721144218664,1.57930186,158.34,158.27,6.3179]
[1721144218849,6.3166,158.32,158.27,6.3179]
[1721144219054,6.3168,158.31,158.26,22.1153]
[1721144219255,6.3181,158.28,158.23,28.7201]
[1721144219454,34.56,158.35,158.23,28.7201]
[1721144219455,6.3184,158.27,158.23,22.4004]
[1721144220086,36.13955904,158.32,158.23,22.4004]
[1721144220376,36.13955904,158.32,158.25,6.3189]
[1721144220563,36.13955904,158.32,158.23,22.4004]
[1721144220564,6.3184,158.27,158.23,22.4004]
[1721144221379,36.13955904,158.32,158.23,22.4004]
[1721144221380,6.3187,158.26,158.23,22.4004]
[1721144221580,6.3187,158.26,158.23,15.8759]
[1721144221786,1.5796707,158.3,158.23,15.8759]
[1721144222082,1.57947635,158.31,158.24,15.7987]
[1721144222254,1.57942236,158.34,158.24,15.7987]
[1721144222455,46.57942236,158.34,158.24,15.7987]
[1721144222775,6.3183,158.28,158.23,22.1958]
[1721144222979,1.57942156,158.31,158.23,31.6746]
[1721144223287,34.56,158.36,158.24,77.86012656]
[1721144223464,6.3155,158.34,158.29,6.3174]
[1721144223672,6.3155,158.34,158.3,1.26315514]
[1721144223874,6.3159,158.33,158.28,6.3178]
[1721144224264,6.3155,158.34,158.29,6.3172]
[1721144224568,1.57894492,158.37,158.27,15.7951]
[1721144224889,6.3166,158.32,158.27,22.1133]
[1721144225055,1.57894492,158.37,158.27,17.05833299]
[1721144225056,6.3158,158.34,158.27,17.05833299]
[1721144225258,1.57900229,158.33,158.27,15.7951]
[1721144225483,1.57923682,158.32,158.25,12.6447]
[1721144225665,1.57926561,158.33,158.27,6.3181]
[1721144225860,1.57926598,158.32,158.25,6.3259]
[1721144226060,6.3171,158.3,158.25,12.6448]
[1721144226297,7.89596598,158.32,158.27,6.3182]
[1721144226479,6.3159,158.33,158.28,6.3178]
[1721144226989,1.57902873,158.37,158.25,25.3059]
[1721144227162,1.57879501,158.39,158.26,0.17]
[1721144227362,6.3151,158.35,158.31,15.7913]
[1721144227666,1.57879501,158.39,158.28,31.5892]
[1721144227863,1.57879501,158.39,158.29,45.63381091]
[1721144228059,1.57879501,158.39,158.29,46.26289955]
[1721144228289,6.3147,158.37,158.29,45.0]
[1721144228491,6.3147,158.37,158.32,6.3162]
[1721144228695,6.3147,158.37,158.33,1.26290088]
[1721144229289,34.56,158.4,158.34,6.3154]
[1721144229591,6.3143,158.37,158.35,1.2628223]
[1721144229793,6.3143,158.37,158.32,6.3162]
[1721144230390,6.3143,158.37,158.33,1.26283974]
[1721144230701,6.314,158.38,158.34,6.3154]
[1721144230986,6.3131,158.4,158.35,6.315]
[1721144231301,1.5785294,158.42,158.35,6.315]
[1721144231302,1.5783382,158.39,158.35,16.3132]
[1721144231506,1.5786498,158.38,158.31,16.3132]
[1721144231671,34.56,158.37,158.28,28.4997]
[1721144231989,1.57899011,158.4,158.34,6.3154]
[1721144232203,6.314,158.38,158.33,6.3156]
[1721144232364,34.56,158.41,158.35,6.3148]
[1721144232365,6.3134,158.4,158.35,6.3148]
[1721144232565,6.3128,158.41,158.34,15.788]
[1721144232802,50.3392,158.44,158.34,15.788]
[1721144232803,6.3139,158.38,158.34,15.788]
[1721144233098,1.57847597,158.37,158.28,6.3875]
[1721144233271,6.3152,158.35,158.3,6.317]
[1721144233476,34.56,158.38,158.29,20.0]
[1721144233686,6.3143,158.37,158.32,6.3162]
[1721144233884,6.3143,158.37,158.33,6.3158]
[1721144234269,6.3143,158.37,158.32,6.3162]
[1721144234498,1.57867356,158.36,158.29,6.3174]
[1721144234693,6.3155,158.34,158.28,22.1821]
[1721144235006,36.13887838,158.38,158.3,6.317]
[1721144235203,6.3151,158.35,158.31,6.3167]
[1721144235496,6.3151,158.35,158.28,22.1821]
[1721144235497,1.57882885,158.38,158.3,15.7921]
[1721144235698,34.56,158.41,158.33,6.3158]
[1721144235699,1.5787537,158.4,158.33,6.3158]
[1721144235880,6.3142,158.38,158.33,6.3158]
[1721144236079,1.57858407,158.37,158.3,15.7921]
[1721144236281,6.3152,158.35,158.3,22.1089]
[1721144236517,6.3144,158.37,158.32,6.316]
[1721144237008,1.57875626,158.4,158.3,15.7921]
[1721144237206,6.3157,158.34,158.3,15.7921]
[1721144237407,1.57866879,158.39,158.31,1.26304443]
[1721144238098,1.57864466,158.4,158.32,6.3162]
[1721144238299,6.3142,158.38,158.33,6.3157]
[1721144238605,1.57842153,158.4,158.33,1.26273722]
[1721144238816,6.3139,158.39,158.35,6.315]
[1721144239109,6.3139,158.39,158.36,1.262498]